bitfinex/quotes_SOLUSD_20260114
["timestamp","ask_amount","ask_price","bid_price","bid_amount"]
[1768414538504,0.60840699,146.05,145.99,0.67457043]
[1768414538708,7.45397106,146.08,146.02,0.67457043]
[1768414538924,9.97368989,146.08,146.03,0.67457043]
[1768414539229,3.12812582,146.08,146.03,0.67457043]
[1768414539427,7.45317267,146.1,146.04,0.67457043]
[1768414539627,0.60840699,146.1,146.06,0.67457043]
[1768414539828,0.60840699,146.12,146.07,0.67457043]
[1768414540030,9.97038074,146.16,146.1,0.67457043]
[1768414540212,2.51971883,146.15,146.1,0.67457043]
[1768414540412,2.51971883,146.15,146.1,7.51895058]
[1768414540614,2.51971883,146.16,146.11,0.67457043]
[1768414540834,2.98371881,146.14,146.11,0.67457043]
[1768414541018,0.46399998,146.14,146.1,7.51912333]
[1768414541219,0.46399998,146.14,146.11,0.67457043]
[1768414541626,10.43010475,146.16,146.11,0.67457043]
[1768414541821,0.099,146.17,146.11,0.67457043]
[1768414542325,17.27311107,146.14,146.09,7.51956176]
[1768414542639,10.43010475,146.13,146.09,0.67457043]
[1768414543327,0.59342688,146.12,146.05,7.52118916]
[1768414543519,10.43010475,146.1,146.06,0.67457043]
[1768414543714,10.43010475,146.11,146.06,0.67457043]
[1768414543922,10.43010475,146.12,146.08,0.67457043]
[1768414544126,0.10404312,146.1,146.03,0.67457043]
[1768414544334,10.43010475,146.07,146.03,0.67457043]
[1768414544745,10.43010475,146.06,146.03,0.67457043]
[1768414544928,0.60840699,146.13,146.04,0.67457043]
[1768414545246,10.43010475,146.1,146.05,0.67457043]
[1768414545427,0.60840699,146.13,146.06,0.67457043]
[1768414545740,10.43010475,146.11,146.06,0.67457043]
[1768414546442,10.43010475,146.11,146.07,6.84603272]
[1768414546644,6.84350027,146.13,146.08,0.67457043]
[1768414546843,10.43010475,146.12,146.08,0.67457043]
[1768414547138,0.60840699,146.16,146.08,11.10467518]
[1768414547331,10.43010475,146.16,146.1,0.67457043]
[1768414547652,10.43010475,146.15,146.1,0.67457043]
[1768414547828,0.60840699,146.17,146.11,0.67457043]
[1768414548026,10.43010475,146.15,146.11,0.67457043]
[1768414548231,10.43010475,146.12,146.07,7.52060315]
[1768414548436,10.43010475,146.11,146.08,0.67457043]
[1768414548645,10.43010475,146.12,146.08,7.5199305]
[1768414548938,10.43010475,146.13,146.09,0.67457043]
[1768414550023,10.43010475,146.14,146.09,0.67457043]
[1768414550336,7.4503314,146.16,146.09,0.67457043]
[1768414550525,10.43010475,146.14,146.09,0.67457043]
[1768414551244,10.43010475,146.14,146.11,0.72305956]
[1768414552218,10.43010475,146.13,146.09,19.32502188]
[1768414552431,10.43010475,146.11,146.08,0.72305956]
[1768414553245,0.60331292,146.14,146.08,7.56857605]
[1768414553444,10.43010475,146.12,146.09,0.72305956]
[1768414553638,17.10454296,146.16,146.09,0.72305956]
[1768414553639,10.43010475,146.13,146.09,0.72305956]
[1768414554836,6.84286053,146.14,146.09,0.72305956]
[1768414555042,10.43010475,146.12,146.1,0.72305956]
[1768414555443,10.43010475,146.11,146.06,13.20305956]
[1768414555749,10.43010475,146.1,146.07,0.72305956]
[1768414555956,10.43010475,146.09,146.07,0.72305956]
[1768414556250,10.43010475,146.1,146.07,0.72305956]
[1768414556546,10.43010475,146.11,146.08,0.72305956]
[1768414557130,10.43010475,146.11,146.08,7.56860117]
[1768414557543,10.43010475,146.11,146.08,0.72305956]
[1768414557744,10.43010475,146.09,146.06,13.20305956]
[1768414558234,10.43010475,146.09,146.06,0.72305956]
[1768414558436,10.43010475,146.07,146.04,7.57030293]
[1768414558626,10.43010475,146.07,146.04,7.57034483]
[1768414558827,10.43010475,146.05,146.02,13.20305956]
[1768414559051,10.40010476,146.05,146.02,13.20305956]
[1768414559344,10.40010476,146.05,146.02,7.57125321]
[1768414560629,0.60840699,146.1,146.03,0.72305956]
[1768414560840,10.43010475,146.08,146.03,0.72305956]
[1768414561026,10.43010475,146.06,146.04,0.72305956]
[1768414561231,10.43010475,146.07,146.04,0.72305956]
[1768414561426,10.43010475,146.07,146.04,7.57045513]
[1768414561637,10.43010475,146.09,146.05,0.72305956]
[1768414561931,12.48,146.13,146.05,0.72305956]
[1768414561932,10.43010475,146.1,146.05,0.72305956]
[1768414562141,0.60840699,146.13,146.05,0.72305956]
[1768414562342,10.43010475,146.09,146.06,0.72305956]
[1768414562543,0.60840699,146.13,146.06,0.72305956]
[1768414562729,10.43010475,146.09,146.06,0.72305956]
[1768414563336,6.94299728,146.12,146.06,7.56952332]
[1768414563537,10.43010475,146.09,146.06,7.56952332]
[1768414564537,10.43010475,146.1,146.07,0.72305956]
[1768414564736,10.43010475,146.08,146.05,0.72305956]
[1768414565158,10.43010475,146.09,146.05,0.72305956]
[1768414565335,10.43010475,146.1,146.05,0.72305956]
[1768414565664,10.43010475,146.08,146.05,0.72305956]
[1768414566335,6.94234031,146.13,146.05,0.72305956]
[1768414566537,10.43010475,146.09,146.05,7.5698767]
[1768414566752,6.84424399,146.11,146.05,7.5698767]
[1768414566956,7.45265098,146.11,146.05,7.5698767]
[1768414567149,10.43010475,146.09,146.05,7.5698767]
[1768414567549,7.45265098,146.11,146.06,0.72305956]
[1768414567943,10.43010475,146.1,146.06,0.72305956]
[1768414568147,10.43010475,146.08,146.06,0.72305956]
[1768414568536,0.60331292,146.06,146.0,0.72305956]
[1768414568849,10.43010475,146.03,146.01,0.72305956]
[1768414569049,10.43010475,146.04,146.01,0.72305956]
[1768414569435,10.43010475,146.03,146.01,0.72305956]
[1768414569640,10.43010475,146.03,146.0,13.20305956]
[1768414569955,0.60840699,146.09,146.02,0.72305956]
[1768414570154,0.60840699,146.11,146.04,0.72305956]
[1768414570352,17.10856243,146.13,146.05,0.72305956]
[1768414570353,17.71696942,146.13,146.05,0.72305956]
[1768414570555,6.84399222,146.12,146.05,0.72305956]
[1768414570753,10.43010475,146.1,146.05,0.72305956]
[1768414571562,10.43010475,146.1,146.06,6.84650143]
[1768414571765,10.43010475,146.1,146.06,7.56956099]
[1768414573762,6.84423439,146.11,146.06,7.56956099]
[1768414573763,10.43010475,146.09,146.06,7.56956099]
[1768414574348,10.43010475,146.1,146.06,7.56956099]
[1768414574541,10.43010475,146.09,146.06,7.56956099]
[1768414574746,10.43010475,146.1,146.06,7.56956099]
[1768414575647,10.43010475,146.11,146.08,0.72305956]
[1768414575866,0.60840699,146.15,146.08,0.72305956]
[1768414576051,0.099,146.14,146.08,0.72305956]
[1768414576251,10.43010475,146.12,146.08,0.72305956]
[1768414576867,6.94182497,146.14,146.08,0.72305956]
[1768414577165,10.43010475,146.12,146.08,0.72305956]
[1768414577362,6.94182497,146.14,146.08,0.72305956]
[1768414577565,10.43010475,146.12,146.08,0.72305956]
[1768414577742,10.43010475,146.11,146.08,7.56848024]
[1768414577949,10.43010475,146.11,146.07,7.5689863]
[1768414578168,10.43010475,146.1,146.07,7.5689863]
[1768414578556,10.43010475,146.08,146.05,0.72305956]
[1768414579157,10.43010475,146.08,146.05,6.84693367]
[1768414579371,0.10898589,146.1,146.06,6.84633781]
[1768414579564,10.43010475,146.08,146.06,6.84633781]
[1768414580176,10.43010475,146.08,146.05,0.72305956]
[1768414580471,10.43010475,146.09,146.05,0.72305956]
[1768414580652,0.10898589,146.1,146.05,0.72305956]
[1768414580849,10.43010475,146.08,146.05,0.72305956]
[1768414581446,10.43010475,146.07,146.05,0.72305956]
[1768414581650,0.59342688,146.09,146.04,29.59778963]
[1768414581651,10.43010475,146.08,146.04,12.48]
[1768414581872,10.43010475,146.07,146.04,12.48]
[1768414582059,10.43010475,146.07,146.04,13.16093177]
[1768414583473,10.43010475,146.06,146.03,7.52883973]
[1768414583870,10.43010475,146.05,146.01,13.16093177]
[1768414584066,0.10404312,146.06,145.99,0.68093177]
[1768414584260,10.43010475,146.03,145.99,0.68093177]
[1768414584466,10.37010477,146.03,146.0,0.68093177]
[1768414584782,17.71940398,146.11,146.03,0.68093177]
[1768414584971,10.43010475,146.08,146.03,0.68093177]
[1768414585480,6.84434699,146.11,146.04,0.68093177]
[1768414585682,10.43010475,146.08,146.04,0.68093177]
[1768414586059,0.60331292,146.1,146.04,0.68093177]
[1768414586262,10.43010475,146.09,146.04,0.68093177]
[1768414586782,10.43010475,146.09,146.05,7.52790198]
[1768414587167,10.43010475,146.08,146.05,7.52790198]
[1768414587362,10.43010475,146.09,146.05,7.52790198]
[1768414587778,11.03341767,146.1,146.05,7.52790198]
[1768414588063,10.43010475,146.09,146.05,7.52790198]
[1768414588777,10.43010475,146.09,146.06,7.52727736]
[1768414588980,10.43010475,146.1,146.06,7.52727736]
[1768414589878,0.099,146.11,146.06,7.52727736]
[1768414590193,10.43010475,146.1,146.06,7.52727736]
[1768414593293,0.59342688,146.06,146.03,6.84787105]
[1768414593482,10.43010475,146.09,146.04,0.68093177]
[1768414594274,10.43010475,146.09,146.05,6.84682358]
[1768414594493,10.43010475,146.07,146.02,0.68093177]
[1768414594692,23.95455478,146.11,146.0,17.80354283]
[1768414594693,10.43010475,146.06,146.0,17.80354283]
[1768414594900,10.43010475,146.05,146.01,6.84867307]
[1768414595279,10.43010475,146.05,146.01,7.52960484]
[1768414595689,0.578407,146.06,146.01,7.52960484]
[1768414595894,10.43010475,146.05,146.01,7.52960484]
[1768414596379,10.53385087,146.03,145.99,0.68093177]
[1768414596771,12.48,146.08,145.97,7.73127582]
[1768414596772,10.43010475,146.01,145.97,7.73127582]
[1768414596984,10.40010476,146.01,145.97,7.73127582]
[1768414597177,9.40010477,146.01,145.97,7.73127582]
[1768414597780,9.40010477,146.01,145.98,6.85013069]
[1768414598101,10.99901902,146.02,145.98,6.85013069]
[1768414598294,10.43010475,146.03,145.99,0.68093177]
[1768414598473,7.42510816,146.06,145.99,0.68093177]
[1768414598677,11.00851175,146.06,146.01,0.68093177]
[1768414599087,0.578407,146.06,146.01,0.68093177]
[1768414599303,7.4241797,146.08,146.02,0.68093177]
[1768414599488,10.43010475,146.07,146.02,0.68093177]
[1768414600104,17.85428445,146.08,146.03,0.68093177]
[1768414600680,0.578407,146.08,146.04,6.84743905]
[1768414601579,7.4240137,146.08,146.03,17.95877538]
[1768414601792,0.578407,146.08,146.03,17.95877538]
[1768414601980,17.85324595,146.1,146.05,0.68093177]
[1768414602180,0.10374612,146.07,146.03,7.52867063]
[1768414602389,0.57361293,146.07,146.01,0.68093177]
[1768414602577,0.56891427,146.05,146.01,12.48]
[1768414602780,0.56891427,146.05,146.01,29.75884858]
[1768414602983,7.42455364,146.07,146.02,10.43010475]
[1768414603405,7.42455364,146.07,146.02,6.42555283]
[1768414604704,7.42455364,146.07,146.01,20.0096756]
[1768414605600,7.42455364,146.07,146.03,6.42555283]
[1768414606101,0.099,146.08,146.05,6.42555283]
[1768414606294,0.099,146.08,146.03,7.1064846]
[1768414606492,0.099,146.08,146.05,6.42555283]
[1768414607008,0.099,146.08,146.04,6.42555283]
[1768414608211,6.94468798,146.08,146.04,6.42555283]
[1768414609092,0.099,146.08,146.05,6.42555283]
[1768414609409,0.099,146.08,146.05,2.5180124]
[1768414609602,6.94457521,146.08,146.05,2.5180124]
[1768414610311,6.94457521,146.08,146.04,2.5180124]
[1768414611407,0.57361293,146.07,146.03,6.84771264]
[1768414611613,0.57361293,146.07,146.03,6.42391902]
[1768414611996,6.84557521,146.08,145.99,0.71589553]
[1768414611997,0.56891427,146.05,145.99,0.71589553]
[1768414612195,0.56891427,146.05,146.0,6.42391902]
[1768414612419,0.56891427,146.05,146.01,6.42391902]
[1768414613193,0.53891427,146.05,146.01,6.42391902]
[1768414613601,7.38589358,146.05,146.01,6.42391902]
[1768414614618,6.84603272,146.07,146.02,7.13981455]
[1768414614818,6.84603272,146.07,146.04,6.42391902]
[1768414615812,6.94503272,146.07,146.02,7.5642717]
[1768414616017,6.94503272,146.07,146.03,6.42391902]
[1768414616695,12.48,146.08,146.05,6.42391902]
[1768414617291,19.32556736,146.08,146.05,6.42391902]
[1768414617520,19.32556736,146.08,146.04,7.13981455]
[1768414617708,6.84556736,146.08,146.04,7.13981455]
[1768414618603,7.39361215,146.09,146.04,13.98714059]
[1768414618802,0.548407,146.11,146.06,0.71589553]
[1768414619015,5.05197813,146.1,146.06,7.13981455]
[1768414619225,7.39267336,146.11,146.06,7.13981455]
[1768414619532,12.48,146.12,146.06,0.71589553]
[1768414619721,17.10751356,146.14,146.09,0.71589553]
[1768414619903,18.32014325,146.13,146.07,7.13981455]
[1768414620105,0.548407,146.11,146.07,7.13981455]
[1768414620509,0.54391293,146.09,146.03,0.71589553]
[1768414620738,0.10344912,146.08,146.01,0.71589553]
[1768414620939,0.5395083,146.07,146.02,6.42391902]
[1768414621231,0.548407,146.11,146.05,0.71589553]
[1768414621440,0.099,146.1,146.05,0.71589553]
[1768414621725,0.099,146.1,146.06,7.13981455]
[1768414621932,6.94364006,146.1,146.06,0.71589553]
[1768414622135,6.94364006,146.1,146.06,7.13981455]
[1768414622332,6.94364006,146.1,146.05,6.42391902]
[1768414622537,0.10344912,146.08,146.02,0.71589553]
[1768414622830,0.10780971,146.06,146.02,0.71589553]
[1768414623040,0.53519131,146.05,146.0,7.13981455]
[1768414623410,0.53519131,146.05,146.01,6.42391902]
[1768414623830,7.38228758,146.05,146.01,6.42391902]
[1768414624848,0.1162723,146.02,145.97,0.2]
[1768414625036,6.54019132,146.02,145.97,0.2]
[1768414625337,0.12037771,146.0,145.96,0.2]
[1768414625920,6.97011313,146.0,145.96,0.2]
[1768414626538,0.32474899,145.99,145.96,0.2]
[1768414626744,6.42391902,145.97,145.93,0.2]
[1768414626945,12.48,145.99,145.93,0.2]
[1768414626946,6.42391902,145.95,145.93,0.2]
[1768414627150,23.97302309,146.0,145.91,1e-08]
[1768414627454,6.42391902,145.92,145.86,0.91589553]
[1768414627649,12.48,145.93,145.86,0.91589553]
[1768414627850,6.42391902,145.89,145.86,0.2]
[1768414628056,6.85307017,145.92,145.86,0.2]
[1768414628256,23.9857456,145.92,145.86,0.2]
[1768414628451,6.42391902,145.89,145.86,0.2]
[1768414628644,6.42391902,145.87,145.86,1e-08]
[1768414628847,6.42391902,145.87,145.8,0.71589553]
[1768414629036,6.42391902,145.85,145.8,0.71589553]
[1768414629435,6.42391902,145.86,145.8,7.13981455]
[1768414629949,5.01767166,145.85,145.8,0.71589553]
[1768414630147,6.85626014,145.86,145.8,0.71589553]
[1768414630347,6.42391902,145.85,145.79,7.13981455]
[1768414630655,23.99598316,145.86,145.79,0.71589553]
[1768414630953,6.42391902,145.85,145.79,0.71589553]
[1768414631346,12.5,145.85,145.81,6.42391902]
[1768414631550,25.78017916,145.86,145.81,0.71589553]
[1768414631736,6.42391902,145.85,145.79,7.13981455]
[1768414632252,6.85644922,145.85,145.79,7.57503711]
[1768414632456,6.85644922,145.85,145.79,13.99895613]
[1768414632657,6.42391902,145.84,145.79,0.71589553]
[1768414632850,6.85644922,145.85,145.79,13.99891498]
[1768414633050,13.28036824,145.85,145.79,7.57499596]
[1768414633249,6.85644922,145.85,145.79,13.99891498]
[1768414633432,12.5,145.86,145.8,7.13981455]
[1768414633637,18.92391902,145.86,145.8,7.13981455]
[1768414633837,12.5,145.86,145.8,7.13981455]
[1768414634155,6.85635927,145.85,145.78,7.57543475]
[1768414634357,6.42391902,145.82,145.76,0.4517539]
[1768414634534,12.5,145.81,145.72,0.71589553]
[1768414634727,6.42391902,145.77,145.72,7.57801657]
[1768414634933,12.5,145.77,145.72,14.00193559]
[1768414635130,12.5,145.77,145.74,0.71589553]
[1768414635432,58.27905381,145.85,145.76,0.71589553]
[1768414635638,4.96945196,145.84,145.77,7.13981455]
[1768414635851,6.85635927,145.85,145.78,7.13981455]
[1768414636057,6.85729959,145.83,145.79,6.42391902]
[1768414636247,12.5,145.84,145.78,0.71589553]
[1768414636444,12.5,145.85,145.81,7.13981455]
[1768414636758,12.5,145.86,145.81,7.13981455]
[1768414636961,17.13766315,145.88,145.81,7.13981455]
[1768414637155,23.8854532,145.87,145.81,7.13981455]
[1768414637359,12.5,145.87,145.81,7.13981455]
[1768414637562,42.91788624,145.87,145.81,7.13981455]
[1768414637789,0.91899999,145.9,145.87,0.71589553]
[1768414638066,0.91899999,145.9,145.88,0.71589553]
[1768414638243,0.91899999,145.9,145.89,6.42391902]
[1768414638448,0.91899999,145.9,145.84,17.14106442]
[1768414638636,7.77313457,145.9,145.84,6.8567684]
[1768414638842,7.77313457,145.9,145.86,6.42391902]
[1768414639065,0.91899999,145.9,145.87,6.42391902]
[1768414640165,0.91899999,145.9,145.88,6.42391902]
[1768414640572,0.91899999,145.9,145.87,6.42391902]
[1768414641166,0.91899999,145.9,145.86,7.52753489]
[1768414641370,0.91899999,145.9,145.87,6.42391902]
[1768414641571,0.91899999,145.9,145.89,6.42391902]
[1768414641749,12.5,145.96,145.91,6.42391902]
[1768414642265,12.5,145.97,145.92,7.08248481]
[1768414642576,12.5,145.97,145.92,6.42391902]
[1768414642764,12.5,145.97,145.91,6.42391902]
[1768414643269,12.5,145.97,145.91,6.85350746]
[1768414643270,19.35101718,145.97,145.91,6.85350746]
[1768414643469,19.35101718,145.97,145.92,6.42391902]
[1768414643859,8.41623285,145.99,145.94,7.08248481]
[1768414644068,1.56621578,145.99,145.96,7.08248481]
[1768414644261,1.56621578,145.99,145.97,6.42391902]
[1768414644865,1.56621578,145.99,145.97,7.08248481]
[1768414645157,1.56621578,145.99,145.98,6.42391902]
[1768414645366,7.51075224,146.04,145.99,0.65856579]
[1768414645663,13.16324798,146.04,146.01,6.42391902]
[1768414646053,13.16324798,146.04,146.0,6.42391902]
[1768414646773,0.66324798,146.04,146.01,6.42391902]
[1768414647167,0.66324798,146.04,145.99,7.50813308]
[1768414647473,0.66324798,146.04,146.01,6.42391902]
[1768414648183,7.51073805,146.04,146.01,6.42391902]
[1768414648352,0.66324798,146.03,145.97,6.85062721]
[1768414648552,0.66324798,146.02,145.96,6.42391902]
[1768414648753,0.66324798,146.02,145.97,6.42391902]
[1768414649059,0.66324798,146.01,145.95,20.00987419]
[1768414649268,0.66324798,146.01,145.96,6.42391902]
[1768414649583,0.66324798,146.01,145.97,6.42391902]
[1768414650154,6.84847109,146.02,145.98,6.42391902]
[1768414650468,0.66324798,146.01,145.97,6.42391902]
[1768414651451,0.66324798,146.01,145.93,0.65856579]
[1768414651657,7.087167,145.99,145.93,7.51084243]
[1768414651857,0.66324798,145.98,145.93,7.51084243]
[1768414652262,7.087167,145.98,145.93,7.51084243]
[1768414652872,0.66324798,145.98,145.93,7.51084243]
[1768414653073,13.93655992,146.0,145.94,7.08248481]
[1768414653274,13.93655992,146.0,145.94,0.65856579]
[1768414653655,7.087167,145.99,145.94,0.65856579]
[1768414653850,0.66324798,145.98,145.93,7.51084243]
[1768414654055,0.66324798,145.98,145.93,13.93476145]
[1768414654462,7.087167,146.02,145.96,7.08248481]
[1768414654661,7.51174682,146.02,145.98,6.42391902]
[1768414654877,0.66324798,146.02,145.98,6.42391902]
[1768414655079,0.66324798,146.02,145.99,6.42391902]
[1768414655273,20.01080677,146.04,145.99,7.08248481]
[1768414655460,20.01080677,146.04,145.99,0.65856579]
[1768414655773,12.5,146.04,146.01,6.42391902]
[1768414655957,0.66324798,146.09,146.03,0.65856579]
[1768414656552,0.66324798,146.09,146.04,6.42391902]
[1768414656755,0.66324798,146.09,146.05,6.42391902]
[1768414656955,0.66324798,146.09,146.04,0.65856579]
[1768414657158,0.66324798,146.09,146.05,6.42391902]
[1768414657471,0.66324798,146.09,146.06,6.42391902]
[1768414657854,7.50839707,146.09,146.04,0.65856579]
[1768414658173,0.66324798,146.08,146.02,20.00686059]
[1768414658377,0.66324798,146.08,146.03,0.65856579]
[1768414658574,0.66324798,146.08,146.04,6.42391902]
[1768414659487,0.66324798,146.08,146.05,6.42391902]
[1768414659783,0.66324798,146.08,146.04,6.42391902]
[1768414660292,7.50898312,146.08,146.04,6.42391902]
[1768414660880,7.50898312,146.08,146.03,0.65856579]
[1768414661182,0.66324798,146.07,146.03,6.42391902]
[1768414662784,1.91700005,146.1,146.05,7.08248481]
[1768414662978,2.58024803,146.1,146.05,7.08248481]
[1768414663279,9.4252142,146.1,146.05,11.09564532]
[1768414664079,9.4252142,146.1,146.03,6.84775099]
[1768414664080,1.91700005,146.1,146.07,0.65856579]
[1768414664385,7.50613616,146.14,146.09,10.43707953]
[1768414664687,0.2,146.15,146.12,10.43707953]
[1768414664887,0.2,146.15,146.09,6.84496492]
[1768414664888,0.2,146.15,146.14,10.43707953]
[1768414665471,0.2,146.15,146.09,23.95770364]
[1768414665667,0.2,146.15,146.14,10.43707953]
[1768414665872,0.66324798,146.18,146.09,23.95770364]
[1768414666072,0.66324798,146.18,146.15,10.43707953]
[1768414666467,0.66324798,146.2,146.1,10.43707953]
[1768414666782,3.8499999,146.21,146.17,10.43707953]
[1768414667297,3.8499999,146.21,146.18,10.43707953]
[1768414668183,3.8499999,146.21,146.19,10.43707953]
[1768414668402,3.8499999,146.21,146.13,12.48]
[1768414668403,0.66324798,146.24,146.2,10.43707953]
[1768414668585,0.66324798,146.24,146.21,10.43707953]
[1768414669088,7.50141155,146.24,146.19,10.43707953]
[1768414669295,0.66324798,146.24,146.2,17.27695095]
[1768414669903,17.93843353,146.24,146.17,12.48]
[1768414670074,7.501354,146.24,146.19,10.43707953]
[1768414670783,6.93764306,146.25,146.21,10.43707953]
[1768414670973,17.37472259,146.25,146.18,6.8407847]
[1768414671165,17.37472259,146.25,146.19,10.43707953]
[1768414671367,6.93764306,146.25,146.19,10.43707953]
[1768414671772,6.93764306,146.25,146.2,10.43707953]
[1768414672590,6.93764306,146.25,146.19,7.50365101]
[1768414672797,7.59265505,146.25,146.2,10.43707953]
[1768414673177,10.43707953,146.24,146.19,11.10032751]
[1768414673376,0.65501199,146.24,146.19,10.43707953]
[1768414674172,0.65501199,146.24,146.2,10.43707953]
[1768414674395,0.65501199,146.24,146.2,10.37707955]
[1768414674697,6.93764306,146.25,146.2,10.37707955]
[1768414674898,0.1,146.37,146.27,5.34408856]
[1768414675082,0.1,146.37,146.33,10.43707953]
[1768414675280,0.1,146.37,146.32,10.43707953]
[1768414675882,0.1,146.37,146.33,10.43707953]
[1768414676290,6.93220743,146.37,146.28,12.48]
[1768414676492,6.93220743,146.37,146.33,10.43707953]
[1768414676873,6.93220743,146.37,146.28,12.48]
[1768414677094,6.93220743,146.37,146.33,10.43707953]
[1768414677398,7.58721942,146.37,146.33,10.43707953]
[1768414678193,7.58721942,146.37,146.3,12.48]
[1768414678382,7.58721942,146.37,146.33,10.43707953]
[1768414678704,0.1,146.37,146.35,10.43707953]
[1768414679287,0.1,146.37,146.35,17.26987902]
[1768414679486,0.1,146.37,146.36,10.43707953]
[1768414680704,0.1,146.37,146.35,10.43707953]
[1768414680892,0.1,146.37,146.33,12.48]
[1768414681091,0.1,146.37,146.34,10.43707953]
[1768414681408,0.1,146.37,146.35,10.43707953]
[1768414682090,0.1,146.37,146.36,10.43707953]
[1768414682291,0.75501199,146.39,146.36,10.43707953]
[1768414682506,0.75501199,146.39,146.34,6.83328854]
[1768414682818,7.5861764,146.39,146.35,10.43707953]
[1768414683015,0.65501199,146.38,146.35,10.43707953]
[1768414683387,0.65501199,146.38,146.31,6.83449171]
[1768414683388,0.65501199,146.37,146.31,6.83449171]
[1768414683609,0.65501199,146.36,146.31,10.43707953]
[1768414683786,0.65501199,146.36,146.32,10.43707953]
[1768414683987,7.48665169,146.38,146.33,10.43707953]
[1768414684187,0.65501199,146.37,146.33,17.27094299]
[1768414684394,0.65501199,146.37,146.3,6.83519628]
[1768414684587,0.65501199,146.37,146.32,10.43707953]
[1768414684803,0.65501199,146.36,146.31,10.43707953]
[1768414685188,17.92510672,146.35,146.29,29.73278814]
[1768414685394,7.48802719,146.35,146.29,29.73278814]
[1768414685595,17.92510672,146.35,146.29,29.73278814]
[1768414685994,7.48802719,146.35,146.29,29.73278814]
[1768414686211,17.92510672,146.35,146.29,29.73278814]
[1768414686510,7.48802719,146.35,146.29,29.73278814]
[1768414686691,11.09209152,146.35,146.29,29.73278814]
[1768414687088,17.92503341,146.35,146.29,19.29570861]
[1768414687289,0.65501199,146.34,146.29,19.29570861]
[1768414687512,0.65501199,146.34,146.29,46.82213122]
[1768414687717,0.65501199,146.34,146.3,10.43707953]
[1768414687894,11.09209152,146.36,146.3,10.43707953]
[1768414688088,0.65501199,146.36,146.29,46.82213122]
[1768414688287,0.65501199,146.35,146.29,46.82213122]
[1768414688786,11.09209152,146.35,146.29,46.82213122]
[1768414689188,0.65501199,146.33,146.29,12.46]
[1768414689389,11.09209152,146.32,146.27,6.83635975]
[1768414689622,0.65501199,146.32,146.27,17.27343928]
[1768414690219,11.09209152,146.32,146.27,6.83635975]
[1768414690394,0.65501199,146.31,146.26,22.89707953]
[1768414690595,0.65501199,146.3,146.26,12.46]
[1768414690907,17.92663111,146.32,146.26,29.73391936]
[1768414691503,0.65501199,146.32,146.27,10.43707953]
[1768414691703,11.09209152,146.32,146.26,29.73391936]
[1768414691998,10.43707953,146.31,146.26,19.29683983]
[1768414692399,17.92650286,146.32,146.26,29.73391936]
[1768414693713,7.48942333,146.32,146.26,29.73391936]
[1768414693916,11.09209152,146.32,146.26,29.73391936]
[1768414694293,17.92651176,146.32,146.26,29.73391936]
[1768414694998,11.09209152,146.34,146.28,10.43707953]
[1768414695202,17.92502626,146.35,146.29,10.43707953]
[1768414695606,0.65501199,146.35,146.3,10.43707953]
[1768414696014,0.65501199,146.32,146.26,17.09280123]
[1768414696199,0.65501199,146.32,146.27,29.7334695]
[1768414696614,7.48841365,146.34,146.28,6.83612331]
[1768414696797,17.92549318,146.34,146.28,17.27320284]
[1768414697116,7.48841365,146.34,146.28,6.83612331]
[1768414697318,7.48841365,146.34,146.28,17.27320284]
[1768414697495,17.92549318,146.34,146.28,17.27320284]
[1768414698423,0.65501199,146.34,146.29,10.43707953]
[1768414698800,7.48845901,146.34,146.28,34.36371418]
[1768414699000,7.48845901,146.34,146.28,17.27320284]
[1768414699327,0.65501199,146.35,146.29,10.43707953]
[1768414700020,0.65501199,146.34,146.28,34.36371418]
[1768414700224,7.48853233,146.34,146.28,34.36371418]
[1768414700804,0.65501199,146.34,146.28,34.36371418]
[1768414701231,11.09209152,146.34,146.28,34.36371418]
[1768414701529,0.66270748,146.33,146.28,6.83612331]
[1768414702615,7.49671714,146.33,146.28,6.83612331]
[1768414702805,0.66270748,146.32,146.27,29.73356236]
[1768414703201,0.66270748,146.32,146.26,6.83711917]
[1768414703404,0.66270748,146.29,146.24,17.27514222]
[1768414703604,0.66270748,146.28,146.23,6.83835208]
[1768414703821,0.66270748,146.28,146.24,6.83807336]
[1768414704032,0.66270748,146.28,146.24,17.27515289]
[1768414704411,0.66270748,146.28,146.24,6.83807336]
[1768414705010,0.66270748,146.3,146.25,10.43707953]
[1768414705216,5.00056918,146.29,146.25,10.43707953]
[1768414705420,0.66270748,146.3,146.24,10.43707953]
[1768414705623,5.00059488,146.29,146.24,10.43707953]
[1768414705806,0.66270748,146.3,146.24,10.43707953]
[1768414706203,5.66903306,146.29,146.24,34.36997193]
[1768414706431,0.66270748,146.29,146.24,34.36997193]
[1768414706932,7.4977996,146.31,146.25,10.43707953]
[1768414707129,5.66731725,146.3,146.24,23.9328924]
[1768414707317,5.66731725,146.29,146.24,34.36997193]
[1768414707517,5.00460977,146.28,146.24,34.36997193]
[1768414707718,0.66270748,146.29,146.24,6.83770641]
[1768414708030,5.01067577,146.28,146.24,6.83770641]